Cogmind - Beta 13 @@@ ROGUE MODE // 2024.06.16 @ 11:01:28 Player: QR-TZ Result: Self-destructed Performance ------------- Evolutions (1) 500 Regions Visited (2) 400 Robots Destroyed (18) 90 Value Destroyed (380) 380 Prototype IDs (3) 60 Alien Tech Used (0) 0 Bonus (0) 0 TOTAL SCORE: 1430 Bonus ------- None Cogmind --------- Core Integrity 268/400 Matter 162/300 Energy 90/125 System Corruption 0% Temperature Critical (722) Movement Treading (330) Ox2 Location -9/Materials Parts ------- > --- POWER (1) -------- Light Ion Engine > --- PROPULSION (2) --- Armored Treads Armored Treads > --- UTILITY (3) ------ Large Storage Unit Medium Armor Plating Hardlight Generator > --- WEAPON (3) ------- Improved Medium Laser Advanced Beam Rifle Advanced Beam Cannon > --- INVENTORY (15) --- Ion Engine Light Ion Engine Armored Treads Wheel Wheel Wheel Wheel Terrain Scanner Medium Armor Plating Hardlight Generator Small Laser Improved Medium Laser Advanced Beam Rifle Advanced Beam Rifle Light EM Pulse Cannon Peak State ------------ > --- POWER ------------ Light Ion Engine > --- PROPULSION ------- Armored Treads Armored Treads > --- UTILITY ---------- Large Storage Unit Medium Armor Plating Hardlight Generator > --- WEAPON ----------- Improved Medium Laser Advanced Beam Rifle Advanced Beam Cannon > --- INVENTORY -------- Ion Engine Light Ion Engine Armored Treads Wheel Wheel Wheel Wheel Terrain Scanner Medium Armor Plating Hardlight Generator Medium Laser Small Laser Advanced Beam Rifle Advanced Beam Rifle Light EM Pulse Cannon [Rating: 25] Favorites ----------- Power Light Ion Engine Engine Light Ion Engine Propulsion Aluminum Leg Treads Armored Treads Leg Aluminum Leg Wheel Wheel Utility Small Storage Unit Device Hardlight Generator Storage Small Storage Unit Protection Medium Armor Plating Weapon Medium Laser Energy Gun Medium Laser Energy Cannon Advanced Beam Cannon Ballistic Gun Light Assault Rifle Ballistic Cannon Light Cannon Build | -11 -10 -9 ------- Run | Yrd Mat Mat Slots Evolved 2 | . . 2 Power . | . . . Propulsion . | . . . Utility 1 | . . 1 Weapon 1 | . . 1 Parts Attached 20 | 6 1 13 Power 2 | 1 1 . Engine 2 | 1 1 . Core . | . . . Reactor . | . . . Propulsion 6 | 2 . 4 Treads 2 | . . 2 Leg 2 | 2 . . Wheel 2 | . . 2 Hover . | . . . Flight . | . . . Utility 4 | 1 . 3 Device 1 | . . 1 Storage 2 | 1 . 1 Processor . | . . . Hackware . | . . . Protection 1 | . . 1 Artifact . | . . . Weapon 8 | 2 . 6 Energy Gun 5 | 2 . 3 Energy Cannon 1 | . . 1 Ballistic Gun 1 | . . 1 Ballistic Cannon 1 | . . 1 Launcher . | . . . Special Weapon . | . . . Impact Weapon . | . . . Slashing Weapon . | . . . Piercing Weapon . | . . . Special Melee Weapon . | . . . Unidentified Prototypes 3 | . . 3 Parts Lost . | . . . Power . | . . . Propulsion . | . . . Utility . | . . . Weapon . | . . . Highest Loss Streak . | . . . To Critical Strikes . | . . . Average Slot Usage (%) 89 | . 85 98 Engine 12 | . 14 11 Treads 6 | . . 16 Leg 17 | . 28 . Wheel 1 | . . 4 Device 2 | . . 7 Storage 13 | . 14 13 Protection 3 | . . 9 Energy Gun 25 | . 28 21 Ballistic Cannon 2 | . . 7 Naked Turns . | . . . Heaviest Build 44 | 12 12 44 Greatest Support 40 | 20 20 40 Greatest Overweight (x) 2 | 1 . 2 Average Overweight (x) . | . . 1 Largest Inventory Capacity 15 | 8 8 15 Average Capacity 10 | 6 8 14 Most Carried 15 | 4 7 15 Average Carried 8 | 3 5 13 Final Capacity 15 | 8 8 15 Final Carried 15 | 4 7 15 Class Distribution -------------------- 67% | Mutant 28% | Tank 4% | Gunner Dominant Class ---------------- Mutant | -10/Materials Tank | -9/Materials Resources | -11 -10 -9 ----------- Run | Yrd Mat Mat Matter Collected 346 | 213 57 76 Remotely . | . . . Salvage Created 490 | . 200 290 Parts 28 | . 14 14 Haulers Intercepted 1 | . . 1 Recyclers Shooed . | . . . Parts Field Recycled . | . . . Retrieved Matter . | . . . Parts Self-Destructed . | . . . Prevented . | . . . Kills | -11 -10 -9 ------- Run | Yrd Mat Mat Combat Hostiles Destroyed 16 | . 9 7 Guns 12 | . 9 3 Cannons 4 | . . 4 Classes Destroyed 4 | . 2 2 Hauler 1 | . . 1 Watcher 1 | . . 1 Swarmer 8 | . 6 2 Grunt 8 | . 3 5 Best Kill Streak 3 | . 3 3 Combat Bots Only 3 | . 3 3 Max Kills in Single Turn 1 | . 1 1 Gunslinging . | . . . Exploded . | . . . Melee . | . . . Uniques/NPCs Destroyed . | . . . Combat | -11 -10 -9 -------- Run | Yrd Mat Mat Hostile Shots Fired 107 | . 68 39 Missed 39 | . 27 12 Damage Taken 741 | . 373 368 Core 211 | . 79 132 Absorbed by Shields 32 | . . 32 Core Remaining (%) 84 | 100 68 . Volleys Fired 50 | . 27 23 Largest 3 | . 2 3 Hottest 185 | . 100 185 Shots Fired 107 | . 54 53 Gun 84 | . 54 30 Cannon 23 | . . 23 Launcher . | . . . Special . | . . . Kinetic 9 | . . 9 Thermal 98 | . 54 44 Explosive . | . . . Electromagnetic . | . . . Robot Hit Streak 13 | . 13 6 Robot Miss Streak 6 | . 6 6 Penetration Max . | . . . Secondary Targets . | . . . Shots Hit Robots 62 | . 35 27 Core Hits 21 | . 12 9 Critical Kills . | . . . Critical Parts Destroyed . | . . . Critical Strikes 6 | . 2 4 Burn 6 | . 2 4 Melee Attacks . | . . . Impact . | . . . Slashing . | . . . Piercing . | . . . Sneak Attacks . | . . . Combat Hostiles . | . . . Follow-up Attacks . | . . . Damage Inflicted 1005 | . 436 569 Guns 829 | . 436 393 Cannons 176 | . . 176 Explosions . | . . . Melee . | . . . Ramming . | . . . Kinetic 75 | . . 75 Thermal 930 | . 436 494 Explosive . | . . . Electromagnetic . | . . . Impact . | . . . Slashing . | . . . Piercing . | . . . Highest Corruption . | . . . Average Corruption . | . . . Corruption Purged . | . . . Corruption Blocked . | . . . Overload Shots . | . . . Overflow Damage . | . . . Projectiles . | . . . Explosions . | . . . Melee . | . . . Knockbacks . | . . . Impact . | . . . Kinetic . | . . . Secondary . | . . . Self-Inflicted Damage . | . . . Shots . | . . . Rammed . | . . . Targets Rammed . | . . . Kicked . | . . . Crushed . | . . . Highest Temperature 796 | . 411 796 Average Temperature 220 | . 147 309 Received Heat Transfer 158 | . 75 83 Effects 21 | . 2 19 Shutdowns 4 | . 1 3 Energy Bleed 2 | . 1 1 Interference 4 | . . 4 Matter Decay 1 | . . 1 Short Circuit 2 | . . 2 Damage (minor) 4 | . . 4 Damage (major) 2 | . . 2 Damage (core) 2 | . . 2 Siege Activations . | . . . Robots Corrupted . | . . . Combat Hostiles . | . . . Parts Fried . | . . . Impact Corruptions . | . . . Robots Melted . | . . . Combat Hostiles . | . . . Parts Melted 4 | . 3 1 Heat Transferred 2664 | . 1443 1221 Parts Sabotaged . | . . . Parts Stolen . | . . . Parts Stripped . | . . . Power Chain Reactions . | . . . Alert | -11 -10 -9 ------- Run | Yrd Mat Mat Peak Influence 274 | . 152 274 Initial 35 | . . 35 Average 68 | . 56 98 Maximum Alert Level 1 | . . 1 Low Security (%) 96 | 100 100 90 Level 1 3 | . . 9 Level 2 . | . . . Level 3 . | . . . Level 4 . | . . . Level 5 . | . . . High Security . | . . . Max Security . | . . . Squads Dispatched 2 | . 2 . Investigation 1 | . 1 . Extermination . | . . . Reinforcement 1 | . 1 . Assault . | . . . Garrison . | . . . Intercept . | . . . Searches Triggered . | . . . Construction Impeded . | . . . Haulers Reinforced . | . . . Active Scanning Responses . | . . . Cargo Convoy Interrupts . | . . . Stealth | -11 -10 -9 --------- Run | Yrd Mat Mat Distress Signals 1 | . . 1 Communications Jammed . | . . . Distress Signals . | . . . Times Spotted 25 | . 15 10 Peak Tracking Total 5 | . 5 3 Tactical Retreats 1 | . . 1 Traps | -11 -10 -9 ------- Run | Yrd Mat Mat Traps Triggered 1 | . 1 . Indirectly . | . . . Trap Hack Attempts . | . . . Triggered . | . . . Disarmed . | . . . Reprogrammed . | . . . Reused . | . . . Traps Extracted . | . . . Installed . | . . . Triggered . | . . . Machines | -11 -10 -9 ---------- Run | Yrd Mat Mat Machines Disabled 1 | . . 1 Max in Single Turn 1 | . . 1 Machines Repaired . | . . . Machines Dismantled . | . . . Machines Sabotaged . | . . . Overloaded Fab Kills . | . . . Hacking | -11 -10 -9 --------- Run | Yrd Mat Mat Machines Accessed 5 | . 4 1 Terminals 5 | . 4 1 Fabricators . | . . . Repair Stations . | . . . Recycling Units . | . . . Scanalyzers . | . . . Garrison Access . | . . . Total Hacks 7 | . 5 2 Successful 5 | . 4 1 Failed 2 | . 1 1 Catastrophic . | . . . Database Lockouts . | . . . Manual . | . . . Terminals 7 | . 5 2 Fabricators . | . . . Repair Stations . | . . . Recycling Units . | . . . Scanalyzers . | . . . Garrison Access . | . . . Terminal Hacks 5 | . 4 1 Robot Analysis 1 | . . 1 Emergency Access Points 2 | . 2 . Registered Components 1 | . 1 . Zone Layout 1 | . 1 . Fabricator Hacks . | . . . Repair Station Hacks . | . . . Recycling Unit Hacks . | . . . Scanalyzer . | . . . Garrison Access Hacks . | . . . Unauthorized Hacks . | . . . Terminals . | . . . Fabricators . | . . . Repair Stations . | . . . Recycling Units . | . . . Scanalyzers . | . . . Garrison Access . | . . . Data Cores Recovered . | . . . Used . | . . . Hacking Detections 5 | . 4 1 Full Trace Events . | . . . Feedback Events . | . . . Feedback Blocked . | . . . Robot Schematics Acquired . | . . . Robots Built . | . . . Authchips . | . . . Time . | . . . Total Robot Build Rating . | . . . Part Schematics Acquired . | . . . Parts Built . | . . . Authchips . | . . . Time . | . . . Total Part Build Rating . | . . . Parts Repaired . | . . . Time . | . . . Parts Recycled . | . . . Recycled Matter . | . . . Retrieved Matter . | . . . Retrieved Components . | . . . Parts Scanalyzed . | . . . Part Schematics Acquired . | . . . Parts Damaged . | . . . Bothacking | -11 -10 -9 ------------ Run | Yrd Mat Mat Used RIF Installer . | . . . Robots Hacked . | . . . Non-combat . | . . . Combat . | . . . Robot Hacks Applied . | . . . Relay Couplers Released . | . . . Fabnet Peak Effective % . | . . . Robots Rewired . | . . . Allies Hacked . | . . . Hacks Repelled . | . . . Allies | -11 -10 -9 -------- Run | Yrd Mat Mat Total Allies . | . . . Largest Group . | . . . Highest-Rated Group . | . . . Highest-Rated Ally . | . . . Total Orders . | . . . Ally Attacks . | . . . Total Damage . | . . . Kills . | . . . Allies Corrupted . | . . . Allies Melted . | . . . Intel | -11 -10 -9 ------- Run | Yrd Mat Mat Robot Analysis Total 1 | . . 1 Derelict Logs Recovered . | . . . Drone Launches . | . . . Drone Recoveries . | . . . Exploration | -11 -10 -9 ------------- Run | Yrd Mat Mat Turns Passed 977 | 56 582 339 Spaces Moved 510 | 40 363 107 Core 7 | 7 . . Treads 56 | . . 56 Legs 400 | 33 363 4 Wheels 47 | . . 47 Hover . | . . . Flight . | . . . Fastest Speed 50 | 50 120 95 Average Speed 132 | 109 120 181 Slowest Speed 330 | 120 120 330 Overloaded Moves . | . . . Propulsion Burnouts . | . . . Robots Hopped . | . . . Cave-ins Triggered . | . . . Exploration Rate (%) 24 | 3 63 8 Regions Visited 2 Branch Regions . Pre-discovered Areas . | . . . Known Exits Taken . | . . . Unknown Exits Taken 2 | 1 1 . Scrap Searched . | . . . Spaces Dug . | . . . Terrain Destroyed . | . . . Melee . | . . . Projectile . | . . . AOE . | . . . Terrain Rammed . | . . . Walls Destroyed . | . . . Machines Disabled . | . . . Actions | -11 -10 -9 --------- Run | Yrd Mat Mat Total 715 | 49 455 211 Wait 107 | . 63 44 Move 508 | 39 362 107 Hop . | . . . Pick Up 18 | 4 2 12 Fast Attach 15 | 6 . 9 Attach 1 | . . 1 Detach 2 | . . 2 Swap 4 | . 1 3 Drop 10 | . . 10 Fire 50 | . 27 23 Melee . | . . . Ram . | . . . Kick . | . . . Crush . | . . . Escape Stasis . | . . . Rewire . | . . . Trap . | . . . Miscellaneous . | . . . Route ------- -11/Scrapyard -10/Materials (discovered 2 exits: *Mat x2) -9/Materials History --------- Turn | Location | Event 6 | -11/Scrapyard | Discovered new exit (range 15) 57 | -11/Scrapyard | Entered Materials 305 | -10/Materials | Build established: Mutant 335 | -10/Materials | Discovered new exit (range 5) 613 | -10/Materials | Discovered new exit (range 11) 639 | -10/Materials | Entered another Materials area 639 | -9/Materials | Evolved 2 slots: Utility x1, Weapon x1 978 | -9/Materials | Self-destructed Last Messages --------------- 00959_ Imp. Medium Laser temporarily disabled. 00959_ Adv. Beam Rifle temporarily disabled. 00959_ Imp. Medium Laser temporarily disabled. 00959_ K-01 Serf collects debris. 00960_ Arm. Treads broken. 00960_ Overheating: Short circuit. 00963_ Overheating: Broken Arm. Treads damaged (-24). 00964_ Overheating: Core damaged (-60). 00965_ Power failure, Lgt. Ion Engine shutdown. 00965_ Overheating: Broken Arm. Treads damaged (-27). 00965_ Overheating: Arm. Treads damaged (-97). 00967_ S-10 Pest destroyed. 00970_ Overheating: Energy bleed (-14). 00971_ Overheating: Broken Arm. Treads damaged (-25). 00971_ G-34 Mercenary destroyed. 00973_ Power failure, Lgt. Ion Engine shutdown. 00973_ G-34 Mercenary destroyed. 00975_ Overheating: System interference. 00975_ Adv. Beam Cannon temporarily disabled. 00977_ Overheating: Matter decay (-48). Map ----- +----------------------------------------------------+ | ?????????????????????????????????????????????????? | | ?????????????????????????????????????????????????? | | ?????????????????????????????????????????????????? | | ?????????????????????????????????????????????????? | | ?????????????????????????????????????????????????? | | ?????????????????????????????????????????????????? | | ?????????????????????????????????????????????????? | | ?????????????????????????????????????????????????? | | ?????????????????????????????????????????????????? | | ?????????????????????????????????????????????????? | | ?????????????????????????????????????????????????? | | ?????????????????????????????????????????????????? | | ?????????????????????????????????????????????????? | | ?????????????????????????????????????????????????? | | ?????????????????????????????????????????????????? | | ?????????????????????????????????????????????????? | | ????????????????????###??????????????????????????? | | ????????????????? # ?????????????????????????? | | ????????????????? + #??????????????????????? | | ????????????????# # """#??????????????????????? | | ????????????????# #= """#??????????????????????? | | ????????????????# #%u"""#??????????????????????? | | ????????????????# #= ""#?#????????????????????? | | ????????????????# # # #????????????????????? | | ????????????????# # # #????????????????????? | | ????????????????# # [@# #????????????????????? | | ????????????????# # !=%# #????????????????????? | | ????????????????# #####+# #???"????????????????? | | ????????????????# %[%#??"?????????????????? | | ????????????????# = ## ??????????????????? | | ????????????????# [""" + ?????????????????? | | ????????????????# * """ #####????????????????? | | ????????????##### ] %""" #????????????????????? | | ????????????#!! [ = #????????????????????? | | ????????????# "" #????????????????????? | | ????????????# "" ##???????????????????? | | ????????????# "T #??????[ #?????????? | | ????????????# "" % # #?????????? | | ????????????#= "" ] + #?????????? | | ????????????#####% ] # ]#?????????? | | ????????????????# % #? #?????????? | | ????????????????# #### ##?? #?????????? | | ????????????????# #??# #?????#???#??????????? | | ????????????????## ##??# #????????????????????? | | ?????????????????# #???# #????????????????????? | | ?????????????????# #???# #????????????????????? | | ?????????????????# #???# #????????????????????? | | ????????????????? #???# ########?????????????? | | ?????????????????###???# # ###???????????? | | ???????????????????????# # """ / #???????????? | +----------------------------------------------------+ Best States ------------- Heat Dissipation 28 Energy Generation 10 Energy Capacity 125 Matter Stores 300 Matter Capacity 300 Sight Range 16 Terrain Scan Density 10 Armor Coverage 225 Evasion (%) 55 Recoil Reduction 2 Item Schematics ----------------- None Robot Schematics ------------------ None Fabricated ------------ Nothing Alien Tech Used ----------------- None Achievements -------------- None Challenges ------------ None Game ------ Seed WeightAuthchipScythe Manual? 0 Play Time 00:11:25 Cumulative 21.4 hours Start 2024.06.16 @ 10:51:30 End 2024.06.16 @ 11:01:28 Sessions 1 Manual Loads 0 Difficulty Rogue Special Mode None Game No. 12 Rogue 12 Adventurer 0 Explorer 0 Win Type - Total 1 Types 1/0/0/0/0/0/0/0/0 Lore% 22 Gallery% 25 Achievement% 26 Wizard Run 0 Options --------- Layout 0 ASCII 0 Keyboard 0 Movement Mouse Keybinds 0 Fullscreen 1 Font 36/Smallcaps Map View 76x50 Zoom Use 0% Tactical HUD 1 Map Filters NONE Filters NONE Steam 1 RUN: 5eb3aaaa-dab8-41a6-bbeb-ee4722326fc3